[Event "10th Amsterdam Science Park 2022"]
[Site "Amsterdam"]
[Date "2022.07.23"]
[Round "6.2"]
[White "Bosboom, Manuel"]
[Black "Bruil, Rembrandt"]
[Result "1/2-1/2"]
[ECO "C00"]
[WhiteElo "2381"]
[BlackElo "2204"]
[Annotator "TA"]
[PlyCount "52"]
[EventDate "2022.07.18"]
[EventCountry "NED"]
[SourceTitle "playchess.com"]
[Source "ChessBase"]
[SourceQuality "1"]
[TimeControl "5400+30"]

{[%evp 17,52,0,0,-5,-8,-20,22,16,48,0,0,0,20,0,-1,-17,0,0,25,42,73,75,60,54,96,107,67,73,88,90,75,21,49,54,48,0,78]} 1. Nf3 {[%emt 0:00:21]} Nf6 {[%emt 0:00:13]} 2. g3 {[%emt 0:00:36]} d5 {[%emt 0:00:08]} 3. Bg2 {[%emt 0:00:07]} e6 {[%emt 0:00:05]} 4. O-O {[%emt 0:01:11]} Be7 {[%emt 0:00:07]} 5. d3 {[%emt 0:01:51]} c5 {[%emt 0:00:45]} 6. Nbd2 {[%emt 0:04:32]} Nc6 {[%emt 0:00:25]} 7. e4 {[%emt 0:00:11]} b6 {[%emt 0:03:37][%cal Bb7b6,Bb6b5][%mdl 32]} 8. Re1 {[%emt 0:02:11]} Bb7 {[%emt 0:05:08]} 9. c3 {[%emt 0:02:58]} h6 {[%emt 0:02:38]} 10. a3 {[%emt 0:08:21] C00: French: Unusual White 2nd moves.} O-O {[%emt 0:06:16]} 11. e5 {[%emt 0:01:28] [#]} Nh7 $146 {[%emt 0:02:49]} ({Predecessor:} 11... Nd7 12. d4 b5 13. dxc5 Nxc5 14. Nb3 a5 15. Nxc5 Bxc5 16. Nd4 Qb6 17. Qg4 h5 18. Qxh5 Nxd4 19. cxd4 Bxd4 {½-½ (42) Gonzalez de la Torre,S (2435)-Batsiashvili,N (2425) Elgoibar 2012}) 12. h4 {[%emt 0:05:04]} b5 {[%emt 0:08:03]} 13. Nh2 {[%emt 0:06:43]} (13. Nb3 $14) 13... a5 $11 {[%emt 0:08:37]} 14. Ng4 {[%emt 0:20:51]} b4 {[%emt 0:06:16]} 15. Nf1 {[%emt 0:03:35][%cal Og4h6]} Kh8 {[%emt 0:01:54]} 16. Nfh2 {[%emt 0:09:41]} bxc3 {[%emt 0:03:54]} 17. bxc3 {[%emt 0:00:10][%cal Bb2c3,Bc3c4,Bc4d5][%mdl 32]} Ba6 {[%emt 0:02:32]} 18. c4 $1 {[%emt 0:05:33]} Rc8 {[%emt 0:03:57] [#]} 19. cxd5 $1 {[%emt 0:03:20]} exd5 {[%emt 0:00:25]} 20. Rb1 {[%emt 0:03:16]} Nd4 {[%emt 0:03:56]} 21. Ne3 {[%emt 0:03:26]} c4 {[%emt 0:02:32]} 22. dxc4 {[%emt 0:01:49]} ({But not} 22. Nxd5 cxd3 23. Be3 Nc2 $15) 22... dxc4 {[%emt 0:00:13]} 23. Nd5 {[%emt 0:01:05]} Bc5 {[%emt 0:06:00]} 24. Be4 {[%emt 0:05:46] Prevents Nf5. White is more active.} (24. Be3 $16 Nf5 25. Bxc5 Rxc5 26. Qc2) 24... f5 {[%emt 0:07:54]} 25. Bg2 {[%emt 0:02:54]} Ne6 {[%emt 0:05:35][%cal Oc4c3]} 26. Bd2 {[%emt 0:02:47]} (26. Be3 $14) 26... Bd4 {[%emt 0:05:34] Weighted Error Value: White=0.12 (very precise) /Black=0.16 (very precise)} (26... c3 $11 {keeps the balance.} 27. Bxc3 f4 28. Nxf4 Qxd1 29. Rbxd1 Nxf4 30. gxf4 Rxf4) 1/2-1/2

[Event "10th Amsterdam Science Park 2022"]
[Site "Amsterdam"]
[Date "2022.07.23"]
[Round "6.3"]
[White "Duchene, Rene"]
[Black "Blom, Vincent"]
[Result "0-1"]
[ECO "B13"]
[WhiteElo "2137"]
[BlackElo "2325"]
[Annotator "TA"]
[PlyCount "65"]
[EventDate "2022.07.18"]
[EventCountry "NED"]
[SourceTitle "playchess.com"]
[Source "ChessBase"]
[SourceQuality "1"]
[TimeControl "5400+30"]

{[%evp 13,65,25,28,20,22,14,14,21,29,10,24,16,16,25,20,19,41,24,86,93,88,90,119,103,99,94,132,79,81,50,77,-31,-31,-35,-35,-32,-35,-225,-223,-585,-583,-579,-563,-443,-309,-306,-306,-302,-302,-412,-402,-377,-386,-505]} 1. Nf3 {[%emt 0:00:05]} c5 {[%emt 0:00:20]} 2. e3 {[%emt 0:00:21]} Nf6 {[%emt 0:02:22]} 3. d4 {[%emt 0:00:49]} cxd4 {[%emt 0:00:08]} 4. exd4 {[%emt 0:00:07]} d5 {[%emt 0:00:22]} 5. c4 {[%emt 0:00:34]} Be6 {[%emt 0:10:09]} 6. c5 {[%emt 0:01:26]} Nc6 {[%emt 0:03:25]} 7. Nc3 {[%emt 0:00:40]} g6 {[%emt 0:10:35]} 8. Bb5 {[%emt 0:01:50] B13: Caro-Kann: Exchange Variation and Panov-Botvinnik Attack.} Bg7 {[%emt 0:01:32]} 9. O-O {[%emt 0:03:41]} O-O {[%emt 0:04:11]} 10. h3 {[%emt 0:01:15] Inhibits Bg4. The position is equal.} Ne4 {[%emt 0:01:02]} 11. Re1 {[%emt 0:09:01]} Qa5 {[%emt 0:13:04]} 12. Bxc6 {[%emt 0:06:49]} Nxc3 {[%emt 0:02:12] [#]} 13. Qd2 $146 {[%emt 0:08:43]} ({Predecessor:} 13. bxc3 bxc6 14. Bf4 Qxc3 15. Rb1 Bf5 16. Rb3 Qa5 17. Rxe7 Qxa2 18. Rbb7 a5 19. Ne5 Be6 20. Nxc6 a4 21. Qe1 a3 22. Qxe6 Rae8 23. Rxf7 {1-0 (23) Piscopo,P (2409)-Rombaldoni,D (2485) Condino 2014}) 13... bxc6 {[%emt 0:03:15]} 14. Qxc3 {[%emt 0:00:18]} Qc7 {[%emt 0:01:48]} 15. Ne5 {[%emt 0:01:16]} f6 {[%emt 0:08:08] [#]} (15... Qb7 $11) 16. Nxg6 $1 $16 {[%emt 0:06:43]} hxg6 {[%emt 0:00:09]} 17. Rxe6 {[%emt 0:00:06] Threatens to win with Bd2.} Qd7 {[%emt 0:00:46]} 18. Re2 {[%emt 0:05:37]} e5 {[%emt 0:00:25] Inhibits Bf4.} 19. Qg3 {[%emt 0:01:02]} Qf5 {[%emt 0:04:11]} 20. Be3 {[%emt 0:01:50]} (20. Bd2 $142) 20... Rab8 {[%emt 0:03:17]} 21. Rd1 {[%emt 0:02:59]} Rfe8 {[%emt 0:01:43]} 22. Qg4 {[%emt 0:01:57]} ({White should play} 22. b3 $16) 22... Qxg4 $15 {[%emt 0:05:32]} 23. hxg4 {[%emt 0:00:07]} exd4 {[%emt 0:01:20]} 24. Rxd4 {[%emt 0:05:21]} f5 {[%emt 0:00:15]} 25. Ra4 {[%emt 0:00:15] White does not recover from this.} (25. Rdd2 $1 $15) 25... d4 $1 $19 {[%emt 0:00:41]} 26. Bf4 $2 {[%emt 0:00:19]} (26. Ra6 {is a better chance.}) 26... Rxe2 {[%emt 0:01:09]} 27. Bxb8 {[%emt 0:00:09][%mdl 4096] Endgame KRB-KRB} d3 {[%emt 0:02:53] [#] aiming for ...d2.} 28. Bf4 {[%emt 0:02:08]} d2 {[%emt 0:04:11]} 29. Bxd2 {[%emt 0:00:09]} Rxd2 {[%emt 0:00:06]} 30. gxf5 {[%emt 0:00:09]} gxf5 {[%emt 0:00:18]} 31. b4 {[%emt 0:02:42]} Bd4 {[%emt 0:04:29]} 32. Rxa7 {[%emt 0:00:13]} Bxf2+ {[%emt 0:01:20]} 33. Kf1 {[%emt 0:00:35] Weighted Error Value: White=0.50/Black=0.16 (very precise)} 0-1

[Event "10th Amsterdam Science Park 2022"]
[Site "Amsterdam"]
[Date "2022.07.23"]
[Round "6.4"]
[White "Baarslag, Ed"]
[Black "De Winter, Arthur"]
[Result "0-1"]
[ECO "E92"]
[WhiteElo "2161"]
[BlackElo "2150"]
[Annotator "TA"]
[PlyCount "58"]
[EventDate "2022.07.18"]
[EventCountry "NED"]
[SourceTitle "playchess.com"]
[Source "ChessBase"]
[SourceQuality "1"]
[TimeControl "5400+30"]

{[%evp 21,58,18,27,-71,-73,-80,-65,-58,-58,-58,-65,-82,-79,-120,-129,-131,-158,-185,-164,-176,-152,-295,-168,-310,-280,-408,-379,-589,-531,-586,-579,-556,-556,-639,-525,-864,-861,-1248,-1132]} 1. d4 {[%emt 0:00:32]} Nf6 {[%emt 0:00:06]} 2. c4 {[%emt 0:00:40]} g6 {[%emt 0:00:06]} 3. Nc3 {[%emt 0:00:06]} Bg7 {[%emt 0:00:04]} 4. e4 {[%emt 0:00:11]} d6 {[%emt 0:00:03]} 5. Be2 {[%emt 0:00:33]} O-O {[%emt 0:00:07]} 6. Nf3 {[%emt 0:00:09]} e5 {[%emt 0:00:13]} 7. d5 {[%emt 0:00:28]} a5 {[%emt 0:00:03]} 8. Bg5 {[%emt 0:00:27]} h6 {[%emt 0:00:07]} 9. Bh4 {[%emt 0:00:11]} Na6 {[%emt 0:00:36]} 10. Nd2 {[%emt 0:00:50]} Qe8 {[%emt 0:01:02]} 11. O-O {[%emt 0:03:22]} Nh7 {[%emt 0:01:59]} 12. Bg4 {[%emt 0:06:59] E92: King's Indian: Classical: 6 Be2 e5: 7 dxe5, 7 Be3 and Petrosian System without 7...Nbd7.} (12. f3 $11 {remains equal.}) 12... Bxg4 $17 {[%emt 0:03:17]} 13. Qxg4 {[%emt 0:00:52] [#]} f5 $146 {[%emt 0:08:15]} ({Predecessor:} 13... h5 14. Qg3 Bh6 15. f4 exf4 16. Qf3 Qe5 17. Qe2 Rae8 18. Rae1 Qg7 19. Nf3 Nc5 {1-0 (42) Kowsarinia,A (2319)-Kumic,F (2230) Istanbul 2012}) 14. exf5 {[%emt 0:00:37] Black is slightly better.} g5 {[%emt 0:00:12]} 15. Bg3 {[%emt 0:07:21]} h5 $1 {[%emt 0:00:16][%cal Bh6h5,Bh5h4][%mdl 32]} 16. Qd1 {[%emt 0:02:09]} h4 {[%emt 0:00:17]} 17. f4 {[%emt 0:01:07][%cal Of4g5]} hxg3 {[%emt 0:00:42]} 18. fxg5 {[%emt 0:00:46]} Nxg5 {[%emt 0:11:36]} 19. h4 {[%emt 0:03:15]} Nh7 {[%emt 0:06:07]} 20. Nde4 {[%emt 0:03:38]} Nc5 {[%emt 0:07:16]} 21. Nxg3 {[%emt 0:12:18]} (21. Nxc5 $17 dxc5 22. Qg4) 21... Kh8 {[%emt 0:01:37]} (21... Nf6 $142 {White must now prevent ...e4.} 22. Qd2 Kh7) 22. Nb5 {[%emt 0:09:30]} (22. Qf3 {might work better.}) 22... Qe7 $19 {[%emt 0:08:45]} 23. Qg4 {[%emt 0:00:47]} (23. f6 {is a better defense.} Rxf6 24. Rxf6 Nxf6 25. Nf5) 23... Bf6 {[%emt 0:00:54]} 24. Ne2 {[%emt 0:06:04]} (24. Qh3 $142 Rf7 25. Nh5) 24... Rg8 {[%emt 0:06:37][%cal Bf8g8,Bg8g7,Bg7g4][%mdl 32] Black is clearly winning.} 25. Qh3 {[%emt 0:03:31]} Rg7 {[%emt 0:03:22] [#] Hoping for ...Rag8.} 26. Rf3 {[%emt 0:11:09]} Rag8 {[%emt 0:03:25]} 27. g3 {[%emt 0:00:22]} Rg4 {[%emt 0:03:42][%cal Rg4h4]} 28. Re1 {[%emt 0:01:49]} Qf7 {[%emt 0:00:55]} 29. Kf2 {[%emt 0:02:38]} e4 {[%emt 0:00:45] White got outplayed after the opening.  Weighted Error Value: White=0.95/Black=0.11 (very precise)} 0-1

[Event "10th Amsterdam Science Park 2022"]
[Site "Amsterdam"]
[Date "2022.07.23"]
[Round "6.5"]
[White "Van der Velde, Henk"]
[Black "Kumar, Prajit Sai"]
[Result "1/2-1/2"]
[ECO "A11"]
[WhiteElo "2079"]
[BlackElo "2040"]
[Annotator "TA"]
[PlyCount "58"]
[EventDate "2022.07.18"]
[EventCountry "NED"]
[SourceTitle "playchess.com"]
[Source "ChessBase"]
[SourceQuality "1"]
[TimeControl "5400+30"]

{[%evp 10,58,27,26,30,22,22,26,33,40,38,26,23,27,24,19,18,20,33,24,51,63,56,43,45,47,41,49,36,35,33,11,28,26,21,16,20,27,19,18,16,14,30,0,41,23,40,0,0,0,7]} 1. c4 {[%emt 0:00:04]} c6 {[%emt 0:01:14]} 2. g3 {[%emt 0:00:10]} d5 {[%emt 0:00:10]} 3. Nf3 {[%emt 0:00:10]} Nf6 {[%emt 0:00:01]} 4. Bg2 {[%emt 0:00:15]} Bf5 {[%emt 0:00:06]} 5. Qb3 {[%emt 0:00:45]} Qb6 {[%emt 0:00:26]} 6. d3 {[%emt 0:00:41]} e6 {[%emt 0:02:10] A11: English Opening: 1...c6.} 7. Be3 {[%emt 0:00:22]} Qxb3 {[%emt 0:00:52]} 8. axb3 {[%emt 0:00:11]} a6 {[%emt 0:00:12] White has an edge.} 9. Nh4 {[%emt 0:01:13]} Bg6 {[%emt 0:00:09]} 10. Bd4 {[%emt 0:00:54]} Nbd7 {[%emt 0:01:07]} 11. Bc3 {[%emt 0:01:47] [#]} Bh5 $146 {[%emt 0:02:07]} ({Predecessor:} 11... Bd6 12. Nxg6 hxg6 13. h4 Be5 14. Nd2 Ke7 15. e3 Bxc3 16. bxc3 a5 17. d4 b5 {1-0 (34) Pantsulaia,L (2587)-Can,I (2423) Cattolica 2022}) 12. h3 {[%emt 0:01:42]} h6 {[%emt 0:06:14]} 13. b4 {[%emt 0:22:29]} Rc8 {[%emt 0:06:31]} 14. Nd2 {[%emt 0:09:33]} d4 {[%emt 0:01:18]} 15. Bxd4 {[%emt 0:00:02]} Bxb4 {[%emt 0:00:18]} 16. g4 {[%emt 0:04:34]} g5 $1 {[%emt 0:00:38]} 17. Nhf3 {[%emt 0:00:19]} Bg6 {[%emt 0:00:14]} 18. Ne5 {[%emt 0:02:47]} Nxe5 {[%emt 0:02:53]} 19. Bxe5 {[%emt 0:00:02]} Ke7 {[%emt 0:02:39]} 20. O-O-O {[%emt 0:04:55]} Rhg8 {[%emt 0:06:46]} 21. Kc2 {[%emt 0:05:36]} h5 {[%emt 0:03:21]} 22. Bf3 {[%emt 0:02:08]} hxg4 {[%emt 0:07:04]} 23. hxg4 {[%emt 0:00:02]} Nd7 {[%emt 0:01:12]} 24. Bc3 {[%emt 0:03:15]} Bxc3 {[%emt 0:00:18]} 25. Kxc3 {[%emt 0:00:02]} Ne5 {[%emt 0:01:47]} 26. b4 {[%emt 0:05:34]} f6 {[%emt 0:03:34]} 27. c5 {[%emt 0:01:40]} Rgd8 {[%emt 0:03:15][%cal Re5d3]} 28. Nc4 {[%emt 0:03:49]} Nxc4 {[%emt 0:00:37]} 29. Kxc4 {[%emt 0:00:02]} e5 {[%emt 0:04:31] Weighted Error Value: White=0.06 (flawless) /Black=0.05 (flawless)} 1/2-1/2

[Event "10th Amsterdam Science Park 2022"]
[Site "Amsterdam"]
[Date "2022.07.23"]
[Round "6.7"]
[White "De Groote, Ewoud"]
[Black "Duson, Robin"]
[Result "1-0"]
[ECO "B47"]
[WhiteElo "2245"]
[BlackElo "2027"]
[Annotator "TA"]
[PlyCount "59"]
[EventDate "2022.07.18"]
[EventCountry "NED"]
[SourceTitle "playchess.com"]
[Source "ChessBase"]
[SourceQuality "1"]
[TimeControl "5400+30"]

{[%evp 14,59,40,11,35,18,29,19,52,50,49,54,54,53,54,42,52,49,135,124,117,113,114,120,120,122,133,127,123,129,195,188,195,173,445,420,444,442,418,433,777,805,855,855,1510,1454,1343,1245]} 1. e4 {[%emt 0:00:04]} c5 {[%emt 0:00:10]} 2. Nf3 {[%emt 0:00:14]} e6 {[%emt 0:00:06]} 3. d4 {[%emt 0:00:04]} cxd4 {[%emt 0:00:09]} 4. Nxd4 {[%emt 0:00:07]} Nc6 {[%emt 0:00:15]} 5. Nc3 {[%emt 0:00:11]} Qc7 {[%emt 0:00:25]} 6. g3 {[%emt 0:00:58]} a6 {[%emt 0:00:33]} 7. Bg2 {[%emt 0:00:09]} Nf6 {[%emt 0:00:25]} 8. O-O {[%emt 0:00:23]} h5 {[%emt 0:01:07] 8...Nxd4 is a critical line. B47: Sicilian: Taimanov: 5 Nc3 Qc7 6 f4, 6 g3 and 6 Be2.} (8... Bc5 $5 {[%cal Rc5d4]} 9. Nb3 Ba7 $14) 9. h3 {[%emt 0:15:09]} Bc5 {[%emt 0:03:30]} 10. Nxc6 {[%emt 0:05:42]} bxc6 {[%emt 0:12:53] The position is equal.} 11. Qf3 {[%emt 0:07:41]} h4 {[%emt 0:04:36] White must now prevent ...hxg3.} 12. g4 {[%emt 0:09:35] [#]} Qg3 $146 {[%emt 0:07:14]} ({Predecessor:} 12... e5 13. b3 Nh7 14. Na4 Be7 15. Qc3 g5 16. f4 gxf4 17. Bxf4 d6 18. Rad1 Be6 {1-0 (36) Brkic,A (2573)-Milov,L (2472) Schwarzach 2019}) 13. Bf4 {[%emt 0:04:58]} Qxf3 {[%emt 0:00:32]} 14. Bxf3 {[%emt 0:00:05]} d5 {[%emt 0:07:01]} 15. Rfe1 {[%emt 0:14:40]} Kf8 {[%emt 0:04:25] Black is on the road to losing.} (15... Be7 $14) 16. exd5 {[%emt 0:01:15]} cxd5 {[%emt 0:02:24]} 17. Na4 $1 {[%emt 0:02:08][%cal Bc3a4,Ba4b6,Bb6c8,Bc8d6,Bd6f7,Bf7e5,Be5c6][%mdl 32]} Ba7 {[%emt 0:06:55]} 18. c4 {[%emt 0:02:43][%cal Bc2c4,Bc4c5][%mdl 32] White is more active.} Bb7 {[%emt 0:02:08]} 19. Rac1 {[%emt 0:03:27]} Ne4 {[%emt 0:05:23]} 20. Bxe4 {[%emt 0:01:56]} dxe4 {[%emt 0:00:09]} 21. c5 {[%emt 0:00:52] aiming for Nb6.} Bc6 {[%emt 0:02:33]} (21... Rc8 $16) 22. Nb6 $18 {[%emt 0:02:55]} Rd8 {[%emt 0:03:23] [#]} 23. Bc7 $1 {[%emt 0:02:03][%cal Bf4c7,Bc7d6,Bd6c5][%mdl 32]} Rd3 {[%emt 0:01:09] [#]} (23... Re8 24. Rcd1 Bxb6 25. Bd6+ (25. Bxb6 Rc8 $14) (25. cxb6 Ke7 $16) 25... Kg8 26. cxb6 Rc8) 24. Bd6+ $1 {[%emt 0:00:24]} (24. Nc8 Rd7 25. Nxa7 Rxc7 26. Nxc6 Rxc6 $16) 24... Ke8 {[%emt 0:00:49] Hoping for ...Bxb6.} 25. Nc8 {[%emt 0:01:09]} Bxc5 {[%emt 0:10:11]} 26. Bxc5 {[%emt 0:01:36]} ({Weaker is} 26. Rxc5 Kd7 $18) 26... Rxh3 {[%emt 0:00:11]} (26... Kd7 $142 27. Nb6+ Kc7) 27. Nd6+ {[%emt 0:03:16]} Kd7 {[%emt 0:00:10]} 28. Nxf7 {[%emt 0:00:42]} e3 {[%emt 0:01:05]} 29. Ne5+ {[%emt 0:00:14]} Kc7 {[%emt 0:00:15]} 30. Nxc6 {[%emt 0:00:37] Weighted Error Value: White=0.02 (flawless) /Black=0.36} 1-0

[Event "10th Amsterdam Science Park 2022"]
[Site "Amsterdam"]
[Date "2022.07.23"]
[Round "6.8"]
[White "Van Nieuwkerk, Ton"]
[Black "Van Arkel, Rogier"]
[Result "1/2-1/2"]
[ECO "B06"]
[WhiteElo "2014"]
[BlackElo "2187"]
[Annotator "TA"]
[PlyCount "90"]
[EventDate "2022.07.18"]
[EventCountry "NED"]
[SourceTitle "playchess.com"]
[Source "ChessBase"]
[SourceQuality "1"]
[TimeControl "5400+30"]

{[%evp 12,90,0,0,241,0,7,0,0,0,25,25,50,0,11,-40,-61,-57,-47,-46,-17,-25,-22,-26,-2,-60,-27,-44,-33,-42,-32,-42,-31,-49,-5,-11,-11,-10,-10,-10,-10,-13,-9,-15,0,0,0,0,0,0,0,0,0,0,0,0,0,0,0,0,0,0,0,0,0,0,0,0,0,0,0,0,0,0,0,0,0,0,0,0,0]} 1. e4 {[%emt 0:00:04]} c5 {[%emt 0:00:47]} 2. c3 {[%emt 0:00:06]} d5 {[%emt 0:01:54]} 3. exd5 {[%emt 0:00:13]} Qxd5 {[%emt 0:00:06]} 4. d4 {[%emt 0:00:04]} g6 {[%emt 0:00:06]} 5. Nf3 {[%emt 0:02:29]} Bg7 {[%emt 0:00:33]} 6. Be3 {[%emt 0:03:58]} cxd4 {[%emt 0:02:20]} 7. cxd4 {[%emt 0:00:18]} Nh6 $2 {[%emt 0:11:30] [#] B06: Modern Defence.} (7... Qa5+ $11 {and Black stays safe.} 8. Nc3 Nh6) 8. Nc3 $2 {[%emt 0:01:48]} (8. Qc1 $1 $18 {[%cal Rc1c8]} Bg4 9. Bxh6 Bxh6 10. Qxh6 Bxf3 11. gxf3) 8... Qa5 $11 {[%emt 0:00:38]} 9. Bc4 {[%emt 0:08:32]} O-O {[%emt 0:02:33]} 10. O-O {[%emt 0:00:35] [#]} Qc7 $146 {[%emt 0:20:05]} ({Predecessor:} 10... Nf5 11. Qe2 Nc6 12. Rad1 Nd6 13. Bb3 Qh5 14. h3 Na5 15. Bc2 Be6 16. d5 Bf5 {½-½ (115) Kalezic,B (2460)-Guseinov,G (2664) Skopje 2018}) 11. Bb3 {[%emt 0:11:01] Black must now prevent Nd5.} Nc6 {[%emt 0:01:58]} 12. Rc1 {[%emt 0:05:12]} Bg4 {[%emt 0:03:50]} 13. h3 {[%emt 0:14:53]} (13. d5 $11 Na5 14. Ne4) 13... Bxf3 $15 {[%emt 0:00:35]} 14. Qxf3 {[%emt 0:00:08]} Nf5 $1 {[%emt 0:00:26]} ({Much worse is} 14... Nxd4 15. Bxd4 Bxd4 16. Nb5 $11) 15. Ne2 {[%emt 0:10:22]} Qd6 {[%emt 0:09:30][%cal Rc6d4]} 16. Rfd1 {[%emt 0:03:36]} Rac8 {[%emt 0:03:14]} 17. Rc3 {[%emt 0:12:57]} Na5 {[%emt 0:11:03][%cal Bc6a5,Ba5b3,Bb3c1][%mdl 32]} 18. Rdc1 {[%emt 0:09:58] [#]} (18. Rxc8 $11 Rxc8 19. Ng3 Nxb3 20. Nxf5 gxf5 21. axb3) 18... Nxb3 $1 {[%emt 0:08:38]} 19. Rxc8 {[%emt 0:02:07]} (19. axb3 Qd7) 19... Nxc1 {[%emt 0:00:43]} 20. Rxc1 {[%emt 0:00:26]} Qb6 {[%emt 0:03:01]} 21. b3 {[%emt 0:00:24]} Rd8 {[%emt 0:01:33][%cal Rf5d4]} 22. Qe4 {[%emt 0:03:27]} e5 {[%emt 0:06:13]} ({But not} 22... Nxd4 23. Nxd4 Bxd4 24. Qxe7 $14) 23. dxe5 {[%emt 0:01:47] The position is equal.} (23. Bg5 {looks sharper.} f6 24. Bd2 Nd6 25. Qf3) 23... Nxe3 {[%emt 0:00:12]} 24. Qxe3 {[%emt 0:00:49]} Qxe3 {[%emt 0:00:22]} 25. fxe3 {[%emt 0:00:04]} Bxe5 $11 {[%emt 0:01:33][%mdl 4096] Endgame KRB-KRN} 26. Rc2 {[%emt 0:01:49] Against Rd2} h5 {[%emt 0:02:37]} 27. Kf2 {[%emt 0:00:17]} f5 {[%emt 0:01:45]} 28. h4 {[%emt 0:02:17]} Kf7 {[%emt 0:01:00]} 29. Kf3 {[%emt 0:00:10]} Rd1 {[%emt 0:00:56][%cal Rd1f1]} 30. g3 {[%emt 0:02:49]} Rh1 {[%emt 0:02:01]} 31. Nf4 {[%emt 0:00:27]} Kf6 {[%emt 0:00:48]} 32. Nd5+ {[%emt 0:00:34]} Kf7 {[%emt 0:01:36]} 33. Nf4 {[%emt 0:00:01]} Rf1+ {[%emt 0:00:37]} 34. Ke2 {[%emt 0:00:27]} Rh1 {[%emt 0:00:29]} 35. Kf3 {[%emt 0:00:09]} Rd1 {[%emt 0:00:16]} 36. Ke2 {[%emt 0:00:24]} Rd7 {[%emt 0:00:22]} 37. Kf3 {[%emt 0:00:18]} Bc7 {[%emt 0:01:04]} 38. Ke2 {[%emt 0:02:26]} Bb6 {[%emt 0:00:36]} 39. Kf3 {[%emt 0:01:02]} Rd1 {[%emt 0:01:10]} 40. Ke2 {[%emt 0:01:02]} Rh1 {[%emt 0:01:06] Strongly threatening ...Rh2+.} 41. Kf3 {[%emt 0:00:56]} Rd1 {[%emt 0:00:00] Prevents Nd5.} 42. Ke2 {[%emt 0:00:00]} Rd8 {[%emt 0:00:00]} 43. Kf3 {[%emt 0:00:00]} Kf6 {[%emt 0:00:00]} 44. Ke2 {[%emt 0:00:00]} Rd7 {[%emt 0:00:00]} 45. Rd2 {[%emt 0:02:34]} Rd8 {Weighted Error Value: White=0.18 (very precise) /Black=0.21 (precise)} 1/2-1/2

[Event "10th Amsterdam Science Park 2022"]
[Site "Amsterdam"]
[Date "2022.07.23"]
[Round "6.9"]
[White "Van Baar, Esper"]
[Black "Berrevoets, Jeroen"]
[Result "1-0"]
[ECO "C07"]
[WhiteElo "2281"]
[BlackElo "2064"]
[Annotator "TA"]
[PlyCount "59"]
[EventDate "2022.07.18"]
[EventCountry "NED"]
[SourceTitle "playchess.com"]
[Source "ChessBase"]
[SourceQuality "1"]
[TimeControl "5400+30"]

{[%evp 14,59,12,11,12,13,5,0,0,0,0,-5,0,0,0,-7,45,-16,-9,-16,-13,-18,-14,-130,-110,-106,-91,-171,-178,-179,-174,-191,-191,-179,-154,-143,-131,-232,-236,-243,1103,1072,29991,29992,29994,29995,29995,29996]} 1. e4 {[%emt 0:00:03]} e6 {[%emt 0:00:30]} 2. d4 {[%emt 0:00:40]} d5 {[%emt 0:00:05]} 3. Nd2 {[%emt 0:00:05]} c5 {[%emt 0:00:04]} 4. Ngf3 {[%emt 0:01:44]} cxd4 {[%emt 0:00:09]} 5. Nxd4 {[%emt 0:00:06]} Nc6 {[%emt 0:00:02]} 6. Bb5 {[%emt 0:00:45]} Bd7 {[%emt 0:00:05]} 7. Nxc6 {[%emt 0:01:00]} bxc6 {[%emt 0:00:03]} 8. Bd3 {[%emt 0:00:08]} Bd6 {[%emt 0:00:04] C07: French Tarrasch: 3...c5, 4 Ngf3 and 4 exd5 Qxd5.} 9. Qe2 {[%emt 0:00:46]} e5 {[%emt 0:04:22] The modern move.} 10. c4 {[%emt 0:04:24]} d4 {[%emt 0:00:17] The position is equal.} 11. c5 {[%emt 0:00:06]} Bxc5 {[%emt 0:00:03]} 12. Nc4 {[%emt 0:00:21]} Qe7 {[%emt 0:06:42]} 13. O-O {[%emt 0:08:54]} Nf6 {[%emt 0:01:39][%cal Bg8f6,Bf6d5,Bd5f4][%mdl 32] [#]} 14. a3 $146 {[%emt 0:09:40]} ({Predecessor:} 14. f4 exf4 15. Bxf4 Ng4 16. h3 Ne3 17. Nxe3 dxe3 18. Bxe3 O-O 19. Rac1 Bd6 20. Qf2 {½-½ (20) Santos Ruiz,M (2597)-Mirzoev,E (2475) Terme Catez 2022}) 14... a5 {[%emt 0:05:59]} ({Better is} 14... O-O $11) 15. h3 {[%emt 0:12:13]} (15. Bg5 $14) 15... O-O $36 {[%emt 0:01:40][%mdl 2048] Black has some pressure.} 16. f4 {[%emt 0:07:18]} exf4 {[%emt 0:00:37]} 17. Bxf4 {[%emt 0:00:22]} Nd5 {[%emt 0:04:40]} 18. Qh5 {[%emt 0:12:44]} (18. exd5 $11 Qxe2 19. Bxe2 d3+ 20. Be3 dxe2 21. Rfe1 Bxe3+ 22. Nxe3) 18... Nxf4 $17 {[%emt 0:04:52]} 19. Rxf4 {[%emt 0:01:20]} g6 {[%emt 0:07:00]} 20. Qf3 {[%emt 0:15:32]} (20. Qh6 $17 {was called for.}) 20... Be6 $19 {[%emt 0:06:41]} 21. Rf1 {[%emt 0:06:50]} a4 {[%emt 0:08:57]} 22. Kh1 {[%emt 0:00:48]} Rab8 {[%emt 0:01:45]} 23. Qe2 {[%emt 0:09:19]} Qc7 {[%emt 0:06:29]} 24. e5 {[%emt 0:01:31]} Bd5 {[%emt 0:03:33]} 25. Rh4 {[%emt 0:02:25]} (25. Be4 $17 {keeps fighting.}) 25... Qe7 {[%emt 0:05:15]} 26. Rf6 {[%emt 0:00:14] Threatens to win with Qd2.} Rb3 $4 {[%emt 0:05:36][%mdl 8192] [#]} (26... Rfe8 $19 27. Be4 Qd8) 27. Qd2 $1 $18 {[%emt 0:00:58][%cal Od2h6] Intending Qh6! and mate.} h5 {[%emt 0:09:08] [#]} 28. Rxh5 $3 {[%emt 0:00:18][%mdl 512] White mates.} Rxd3 {[%emt 0:05:32] [#]} (28... Qxe5 29. Nxe5) 29. Qh6 $1 {[%emt 0:01:18][%csl Gh5][%cal Rh6h7]} Bxg2+ {[%emt 0:01:39]} 30. Kxg2 {[%emt 0:00:33] What a bad dream for Black.  Weighted Error Value: White=0.19 (very precise) /Black=0.38} 1-0